Cogmind - Beta 13 @@@ ROGUE MODE // 2024.04.13 @ 19:10:24 Player: Ray Result: Destroyed by as-73844 with Assembled Rifle Performance ------------- Evolutions (0) 0 Regions Visited (4) 800 Robots Destroyed (2) 10 Value Destroyed (20) 20 Prototype IDs (0) 0 Alien Tech Used (0) 0 Bonus (300) 300 TOTAL SCORE: 1130 Bonus ------- Aligned with FarCom 300 Cogmind --------- Core Integrity 0/250 Matter 289/300 Energy 100/100 System Corruption 0% Temperature Cool (0) Movement Treading (160) Location -9/Mines Parts ------- > --- POWER (1) -------- (None) > --- PROPULSION (2) --- Light Treads > --- UTILITY (2) ------ Sensor Array Signal Interpreter > --- WEAPON (2) ------- (None) > --- INVENTORY (5) ---- Aluminum Leg Aluminum Leg Small Laser Light Assault Rifle Peak State ------------ > --- POWER ------------ Light Ion Engine > --- PROPULSION ------- Light Treads Light Treads > --- UTILITY ---------- Small Storage Unit Sensor Array > --- WEAPON ----------- Assault Rifle Assault Rifle > --- INVENTORY -------- Light Ion Engine Aluminum Leg Aluminum Leg Signal Interpreter Small Laser Light Assault Rifle [Rating: 7] Favorites ----------- Power Light Ion Engine Engine Light Ion Engine Propulsion Light Treads Treads Light Treads Utility Sensor Array Device Sensor Array Storage Small Storage Unit Processor Signal Interpreter Weapon Assault Rifle Ballistic Gun Assault Rifle Build | -11 -10 -10 -10 -9 ------- Run | Yrd Mat Min Exi Min Slots Evolved . | . . . . . Power . | . . . . . Propulsion . | . . . . . Utility . | . . . . . Weapon . | . . . . . Parts Attached 10 | 5 2 2 . 1 Power 2 | 1 . . . 1 Engine 2 | 1 . . . 1 Core . | . . . . . Reactor . | . . . . . Propulsion 2 | 1 1 . . . Treads 2 | 1 1 . . . Leg . | . . . . . Wheel . | . . . . . Hover . | . . . . . Flight . | . . . . . Utility 4 | 1 1 2 . . Device 2 | . 1 1 . . Storage 1 | 1 . . . . Processor 1 | . . 1 . . Hackware . | . . . . . Protection . | . . . . . Artifact . | . . . . . Weapon 2 | 2 . . . . Energy Gun . | . . . . . Energy Cannon . | . . . . . Ballistic Gun 2 | 2 . . . . Ballistic Cannon . | . . . . . Launcher . | . . . . . Special Weapon . | . . . . . Impact Weapon . | . . . . . Slashing Weapon . | . . . . . Piercing Weapon . | . . . . . Special Melee Weapon . | . . . . . Unidentified Prototypes . | . . . . . Parts Lost 5 | . . . . 5 Power 2 | . . . . 2 Propulsion 1 | . . . . 1 Utility . | . . . . . Weapon 2 | . . . . 2 Highest Loss Streak 5 | . . . . 5 To Critical Strikes . | . . . . . Average Slot Usage (%) 98 | . 73 100 100 98 Engine 13 | . 14 14 14 13 Treads 27 | . 14 28 28 27 Device 13 | . 2 14 14 14 Storage 2 | . 14 10 . . Processor 11 | . . 3 14 14 Ballistic Gun 28 | . 28 28 28 28 Naked Turns . | . . . . . Heaviest Build 13 | 12 13 13 8 8 Greatest Support 40 | 20 40 40 40 40 Greatest Overweight (x) . | . . . . . Average Overweight (x) . | . . . . . Largest Inventory Capacity 8 | 8 8 8 5 5 Average Capacity 5 | 7 8 7 5 5 Most Carried 7 | 6 7 6 5 5 Average Carried 5 | 4 5 5 5 4 Final Capacity 8 | 8 8 5 5 5 Final Carried 6 | 5 6 5 5 4 Class Distribution -------------------- 94% | Mutant 5% | Skirmisher Dominant Class ---------------- Mutant | -10/Materials Mutant | -10/Mines Mutant | -10/Exiles Skirmisher | -9/Mines Resources | -11 -10 -10 -10 -9 ----------- Run | Yrd Mat Min Exi Min Matter Collected 288 | 235 31 22 . . Remotely . | . . . . . Salvage Created 20 | . . 20 . . Parts 5 | . . 5 . . Haulers Intercepted . | . . . . . Recyclers Shooed . | . . . . . Parts Field Recycled . | . . . . . Retrieved Matter . | . . . . . Parts Self-Destructed . | . . . . . Prevented . | . . . . . Kills | -11 -10 -10 -10 -9 ------- Run | Yrd Mat Min Exi Min Combat Hostiles Destroyed 2 | . . 2 . . Guns 2 | . . 2 . . Classes Destroyed 1 | . . 1 . . Swarmer 2 | . . 2 . . Best Kill Streak 1 | . . 1 . . Combat Bots Only 1 | . . 1 . . Max Kills in Single Turn 1 | . . 1 . . Gunslinging . | . . . . . Exploded . | . . . . . Melee . | . . . . . Uniques/NPCs Destroyed . | . . . . . Combat | -11 -10 -10 -10 -9 -------- Run | Yrd Mat Min Exi Min Hostile Shots Fired 51 | . . 8 . 43 Missed 18 | . . 7 . 11 Damage Taken 742 | . . 6 . 736 Core 257 | . . . . 257 Absorbed by Shields . | . . . . . Core Remaining (%) 100 | 100 . . . . Volleys Fired 4 | . 1 2 . 1 Largest 2 | . 2 2 . 2 Hottest 40 | . 40 40 . 40 Shots Fired 8 | . 2 4 . 2 Gun 8 | . 2 4 . 2 Cannon . | . . . . . Launcher . | . . . . . Special . | . . . . . Kinetic 8 | . 2 4 . 2 Thermal . | . . . . . Explosive . | . . . . . Electromagnetic . | . . . . . Robot Hit Streak 5 | . 1 3 . 5 Robot Miss Streak 1 | . 1 . . . Penetration Max . | . . . . . Secondary Targets . | . . . . . Shots Hit Robots 5 | . 1 2 . 2 Core Hits 3 | . . 2 . 1 Critical Kills . | . . . . . Critical Parts Destroyed . | . . . . . Critical Strikes . | . . . . . Melee Attacks . | . . . . . Impact . | . . . . . Slashing . | . . . . . Piercing . | . . . . . Sneak Attacks . | . . . . . Combat Hostiles . | . . . . . Follow-up Attacks . | . . . . . Damage Inflicted 64 | . 14 28 . 22 Guns 64 | . 14 28 . 22 Cannons . | . . . . . Explosions . | . . . . . Melee . | . . . . . Ramming . | . . . . . Kinetic 64 | . 14 28 . 22 Thermal . | . . . . . Explosive . | . . . . . Electromagnetic . | . . . . . Impact . | . . . . . Slashing . | . . . . . Piercing . | . . . . . Highest Corruption . | . . . . . Average Corruption . | . . . . . Corruption Purged . | . . . . . Corruption Blocked . | . . . . . Overload Shots . | . . . . . Overflow Damage . | . . . . . Projectiles . | . . . . . Explosions . | . . . . . Melee . | . . . . . Knockbacks . | . . . . . Impact . | . . . . . Kinetic . | . . . . . Secondary . | . . . . . Self-Inflicted Damage . | . . . . . Shots . | . . . . . Rammed . | . . . . . Targets Rammed . | . . . . . Kicked . | . . . . . Crushed . | . . . . . Highest Temperature . | . . . . . Average Temperature . | . . . . . Received Heat Transfer . | . . . . . Siege Activations . | . . . . . Robots Corrupted . | . . . . . Combat Hostiles . | . . . . . Parts Fried . | . . . . . Impact Corruptions . | . . . . . Robots Melted . | . . . . . Combat Hostiles . | . . . . . Parts Melted . | . . . . . Heat Transferred . | . . . . . Parts Sabotaged . | . . . . . Parts Stolen . | . . . . . Parts Stripped . | . . . . . Power Chain Reactions . | . . . . . Alert | -11 -10 -10 -10 -9 ------- Run | Yrd Mat Min Exi Min Peak Influence 80 | . 3 80 . . Initial . | . . . . . Average 15 | . 2 28 . . Maximum Alert Level . | . . . . . Low Security (%) 100 | 100 100 100 . 100 Level 1 . | . . . . . Level 2 . | . . . . . Level 3 . | . . . . . Level 4 . | . . . . . Level 5 . | . . . . . High Security . | . . . . . Max Security . | . . . . . Squads Dispatched . | . . . . . Investigation . | . . . . . Extermination . | . . . . . Reinforcement . | . . . . . Assault . | . . . . . Garrison . | . . . . . Intercept . | . . . . . Searches Triggered . | . . . . . Construction Impeded . | . . . . . Haulers Reinforced . | . . . . . Active Scanning Responses . | . . . . . Cargo Convoy Interrupts . | . . . . . Stealth | -11 -10 -10 -10 -9 --------- Run | Yrd Mat Min Exi Min Distress Signals 1 | . 1 . . . Communications Jammed . | . . . . . Distress Signals . | . . . . . Times Spotted 19 | . . 4 . 15 Peak Tracking Total 11 | . . 2 . 11 Tactical Retreats 3 | . . 1 . 2 Traps | -11 -10 -10 -10 -9 ------- Run | Yrd Mat Min Exi Min Traps Triggered . | . . . . . Indirectly . | . . . . . Trap Hack Attempts . | . . . . . Triggered . | . . . . . Disarmed . | . . . . . Reprogrammed . | . . . . . Reused . | . . . . . Traps Extracted . | . . . . . Installed . | . . . . . Triggered . | . . . . . Machines | -11 -10 -10 -10 -9 ---------- Run | Yrd Mat Min Exi Min Machines Disabled . | . . . . . Max in Single Turn . | . . . . . Machines Repaired . | . . . . . Machines Dismantled . | . . . . . Machines Sabotaged . | . . . . . Overloaded Fab Kills . | . . . . . Hacking | -11 -10 -10 -10 -9 --------- Run | Yrd Mat Min Exi Min Machines Accessed 5 | . 1 . 4 . Terminals 1 | . 1 . . . Fabricators . | . . . . . Repair Stations . | . . . . . Recycling Units . | . . . . . Scanalyzers . | . . . . . Garrison Access . | . . . . . Total Hacks 54 | . 5 . 49 . Successful 53 | . 4 . 49 . Failed 1 | . 1 . . . Catastrophic 1 | . 1 . . . Database Lockouts . | . . . . . Manual . | . . . . . Terminals 5 | . 5 . . . Fabricators . | . . . . . Repair Stations . | . . . . . Recycling Units . | . . . . . Scanalyzers . | . . . . . Garrison Access . | . . . . . Terminal Hacks 53 | . 4 . 49 . Record 49 | . . . 49 . Branch Access Points 1 | . 1 . . . Locate Traps 1 | . 1 . . . Maintenance Status 1 | . 1 . . . Hauler Manifests 1 | . 1 . . . Fabricator Hacks . | . . . . . Repair Station Hacks . | . . . . . Recycling Unit Hacks . | . . . . . Scanalyzer . | . . . . . Garrison Access Hacks . | . . . . . Unauthorized Hacks . | . . . . . Terminals . | . . . . . Fabricators . | . . . . . Repair Stations . | . . . . . Recycling Units . | . . . . . Scanalyzers . | . . . . . Garrison Access . | . . . . . Data Cores Recovered . | . . . . . Used . | . . . . . Hacking Detections 1 | . 1 . . . Full Trace Events . | . . . . . Feedback Events . | . . . . . Feedback Blocked . | . . . . . Robot Schematics Acquired . | . . . . . Robots Built . | . . . . . Authchips . | . . . . . Time . | . . . . . Total Robot Build Rating . | . . . . . Part Schematics Acquired . | . . . . . Parts Built . | . . . . . Authchips . | . . . . . Time . | . . . . . Total Part Build Rating . | . . . . . Parts Repaired . | . . . . . Time . | . . . . . Parts Recycled . | . . . . . Recycled Matter . | . . . . . Retrieved Matter . | . . . . . Retrieved Components . | . . . . . Parts Scanalyzed . | . . . . . Part Schematics Acquired . | . . . . . Parts Damaged . | . . . . . Bothacking | -11 -10 -10 -10 -9 ------------ Run | Yrd Mat Min Exi Min Used RIF Installer . | . . . . . Robots Hacked . | . . . . . Non-combat . | . . . . . Combat . | . . . . . Robot Hacks Applied . | . . . . . Relay Couplers Released . | . . . . . Fabnet Peak Effective % . | . . . . . Robots Rewired . | . . . . . Allies Hacked . | . . . . . Hacks Repelled . | . . . . . Allies | -11 -10 -10 -10 -9 -------- Run | Yrd Mat Min Exi Min Total Allies . | . . . . . Largest Group . | . . . . . Highest-Rated Group . | . . . . . Highest-Rated Ally . | . . . . . Total Orders . | . . . . . Ally Attacks . | . . . . . Total Damage . | . . . . . Kills . | . . . . . Allies Corrupted . | . . . . . Allies Melted . | . . . . . Intel | -11 -10 -10 -10 -9 ------- Run | Yrd Mat Min Exi Min Robot Analysis Total . | . . . . . Derelict Logs Recovered 3 | . . 3 . . Drone Launches . | . . . . . Drone Recoveries . | . . . . . Exploration | -11 -10 -10 -10 -9 ------------- Run | Yrd Mat Min Exi Min Turns Passed 2787 | 157 135 553 1763 179 Spaces Moved 1710 | 95 80 335 1098 102 Core 8 | 8 . . . . Treads 1702 | 87 80 335 1098 102 Legs . | . . . . . Wheels . | . . . . . Hover . | . . . . . Flight . | . . . . . Fastest Speed 50 | 50 160 160 160 160 Average Speed 159 | 150 160 160 160 160 Slowest Speed 160 | 160 160 160 160 160 Overloaded Moves . | . . . . . Propulsion Burnouts . | . . . . . Robots Hopped . | . . . . . Cave-ins Triggered . | . . . . . Exploration Rate (%) 40 | 7 20 60 93 23 Regions Visited 4 Branch Regions 3 Pre-discovered Areas 1 | . . . 1 . Known Exits Taken 3 | . 1 1 1 . Unknown Exits Taken 1 | 1 . . . . Scrap Searched 1 | . . 1 . . Spaces Dug . | . . . . . Terrain Destroyed . | . . . . . Melee . | . . . . . Projectile . | . . . . . AOE . | . . . . . Terrain Rammed . | . . . . . Walls Destroyed . | . . . . . Machines Disabled . | . . . . . Actions | -11 -10 -10 -10 -9 --------- Run | Yrd Mat Min Exi Min Total 1763 | 109 85 349 1104 116 Wait 25 | . . 6 7 12 Move 1706 | 94 79 334 1097 102 Hop . | . . . . . Pick Up 15 | 10 3 2 . . Fast Attach . | . . . . . Attach 9 | 5 2 1 . 1 Detach . | . . . . . Swap 1 | . . 1 . . Drop 3 | . . 3 . . Fire 4 | . 1 2 . 1 Melee . | . . . . . Ram . | . . . . . Kick . | . . . . . Crush . | . . . . . Escape Stasis . | . . . . . Rewire . | . . . . . Trap . | . . . . . Miscellaneous . | . . . . . Route ------- -11/Scrapyard -10/Materials -10/Mines (discovered 3 exits: *Mat / *Exi / Sub) -10/Exiles (discovered 2 exits: *Min x2) -9/Mines History --------- Turn | Location | Event 5 | -11/Scrapyard | Discovered new exit (range 14) 158 | -11/Scrapyard | Entered Materials 179 | -10/Materials | Identified exit to Mines 237 | -10/Materials | Met 8R-AWN 293 | -10/Materials | Entered Mines 295 | -10/Mines | Followed 8R-AWN into the Mines 311 | -10/Mines | Build established: Mutant 428 | -10/Mines | Identified exit to Subcaves 629 | -10/Mines | Discovered new exit (range 7) 665 | -10/Mines | Learned location of 1 exit from Materials 707 | -10/Mines | Identified exit to Materials 836 | -10/Mines | Discovered new exit (range 5) 843 | -10/Mines | Identified exit to Exiles 846 | -10/Mines | Entered Exiles 847 | -10/Exiles | Identified exit to Mines 960 | -10/Exiles | Welcomed by 8R-AWN 1010 | -10/Exiles | Learned about 8R-AWN's background 1013 | -10/Exiles | Met EX-HEX 1109 | -10/Exiles | Met EX-DEC 1213 | -10/Exiles | Learned location of Zion (-6) 1318 | -10/Exiles | Met EX-BIN 1349 | -10/Exiles | Aligned with FarCom system 1350 | -10/Exiles | Given EX-Vault access code 1799 | -10/Exiles | Visited The Gauntlet 2609 | -10/Exiles | Entered Mines 2621 | -9/Mines | Met a Derelict bent on vengeance 2744 | -9/Mines | Assembled infested the area 2775 | -9/Mines | Core integrity fell below 50% 2784 | -9/Mines | Core integrity fell below 20% 2788 | -9/Mines | Destroyed by as-73844 with Assembled Rifle Last Messages --------------- Demolisher response squad. Lgt. Ion Engine destroyed. K-01 Serf collects debris. C-30 ARC bursts open, deploying its payload. D-53 Grenadier unfolds itself. as-38875 destroyed. The unstable cave ceiling collapses. as-66015 destroyed. as-44867 destroyed. Lgt. Treads destroyed. Lgt. Ion Engine destroyed. as-24460 destroyed. T-07 Excavator destroyed. as-71794 destroyed. K-01 Serf collects debris. T-07 Excavator destroyed. Assault Rifle destroyed. Matter Pump disabled. as-14690 destroyed. as-97002 destroyed. Map ----- +----------------------------------------------------+ | ?????????????????????????????????????????????????? | | ?????????????????????????????????????????????????? | | ?????????????????????????????????????????????????? | | ?????????????????????????????????????????????????? | | ?????????????????????????????????????????????????? | | ?????????????????????????????????????????????????? | | ?????????????????????????????????????????????????? | | ?????????????????????????????????????????????????? | | ?????????????????????????????????????????????????? | | ???????????????????????????#?????????????????????? | | ?????????????????????????? #?????????????????????? | | ????#????????????????????? ##????????????????????? | | ????# ??#######?????????? %?????????????????????? | | ????# ## ????????### #?????????????????????? | | ????# #????###?# |###???????????????????? | | ?? ## ? #???## ## % ##??????????????????? | | ?? ???# ##### d #??????????????????? | | ? ??# a #??????????????????? | | ?? #?# #??????????????????? | | ???? ######## #??????????????????? | | ?????? #???### ##?????????????????? | | ????# ??## "" #?????????????????? | | ?????# =!### # "" #?????????????????? | | ???????????#a a a% " #?????????????????? | | ???????????# = ##?????????????????? | | ???????????## ! | @ ###??????????????????? | | ????????????# =%! # ##????????????????????? | | ????????????#x ## ##?????????????????????? | | ??????????### ### * ######?????????????????? | | ??????????# #?# % x ?????????????????? | | ??????????# #?# ! ????????????????? | | ??????????# ###?##### ???????????????????? | | ??????????# #???##### ## ????????????????????? | | ??????????# #??## ##?# ???????????????????? | | ?????????## #### ##???# ??????????????????? | | ????????## #?????#??????????????????? | | ???????## #????????????????????????? | | ??????## ##### ##????????????????????????? | | ?????## #???## ###?????????????????????????? | | ????## ##????#####???????????????????????????? | | ???## #?????????????????????????????????????? | | ???# ####??????????????????????????????????? | | ???# #??????????????????????????????????? | | ???# #??????????????????????????????????? | | ???# #### #??????????????????????????????????? | | ??# #??? #??????????????????????????????????? | | ??# ##???? ??????????????????????????????????? | | ??## ##?????##?????????????????????????????????? | | ???#####?????????????????????????????????????????? | | ?????????????????????????????????????????????????? | +----------------------------------------------------+ Best States ------------- Heat Dissipation 25 Energy Generation 10 Energy Capacity 125 Matter Stores 300 Matter Capacity 300 Sight Range 16 Robot Scan Range 14 Terrain Scan Density 10 Evasion (%) 40 Recoil Reduction 2 Item Schematics ----------------- None Robot Schematics ------------------ None Fabricated ------------ Nothing Alien Tech Used ----------------- None Achievements -------------- None Challenges ------------ None Game ------ Seed SigixLatentTorch Manual? 0 Play Time 00:27:15 Cumulative 4.0 hours Start 2024.04.13 @ 15:32:13 End 2024.04.13 @ 19:10:24 Sessions 2 Manual Loads 0 Difficulty Rogue Special Mode None Game No. 4 Rogue 4 Adventurer 0 Explorer 0 Win Type - Total 0 Types 0/0/0/0/0/0/0/0/0 Lore% 14 Gallery% 8 Achievement% 10 Wizard Run 0 Options --------- Layout 1 ASCII 0 Keyboard 0 Movement Arrows Keybinds 0 Fullscreen 2 Font 32/SmallcapsGlow Map View 50x35 Zoom Use 0% Tactical HUD 0 Map Filters NONE Filters NONE Steam 1 RUN: b65c2720-ea55-4f2e-9d7c-e9f435f7bafb